fUST/lending_fUST_20240123
["ID","MTS","AMOUNT","RATE_DAILY","PERIOD"]
[312543442,1705954244602,-315.92,0.00027855,2]
[312543444,1705954244611,-53.14505426,0.00027855,2]
[312543490,1705954246673,-477.4395834,0.0002199,3]
[312543507,1705954319142,280.0,0.00021655,7]
[312543514,1705954342370,-170.92363548,0.00017896,2]
[312543515,1705954342391,-154.92253873,0.00017897,2]
[312543516,1705954342412,-151.15382579,0.00019686,3]
[312543646,1705954921215,391.0,0.00021695,7]
[312543706,1705955220367,391.0,0.00021393,7]
[312543875,1705955439367,-452.74208012,0.00014939,2]
[312543876,1705955439378,-301.93072688,0.00014939,2]
[312543878,1705955439387,-329.53567279,0.00014939,2]
[312543880,1705955439397,-213.43652609,0.0001494,2]
[312543882,1705955439406,-15915.17297811,0.0001494,2]
[312543884,1705955439416,-19867.27856324,0.00014941,2]
[312543885,1705955439425,-154.92253873,0.00014941,2]
[312543886,1705955439434,-7960.18375069,0.00014942,2]
[312543887,1705955439443,-154.92253873,0.00014942,2]
[312543888,1705955439452,-154.92253873,0.00014942,2]
[312543890,1705955439462,-170.92363548,0.00014942,2]
[312543892,1705955439471,-1579.39395429,0.00014943,2]
[312543894,1705955439480,-380.77161406,0.00014944,2]
[312543895,1705955439490,-1266.7890629,0.00015,2]
[312543897,1705955439500,-687.96014716,0.00015,2]
[312543900,1705955439512,-154.92253873,0.00015,2]
[312543903,1705955439524,-193.33123141,0.0001504,2]
[312543906,1705955439533,-81207.38465248,0.00015042,2]
[312543909,1705955439545,-19701.14547142,0.00015042,2]
[312543912,1705955439554,-8127.58275517,0.00015043,2]
[312543915,1705955439564,-2103.40493137,0.00015044,2]
[312543918,1705955439573,-1430.02519153,0.00015149,2]
[312543921,1705955439585,-643.90279557,0.00015149,2]
[312543925,1705955439595,-470.67463112,0.00015149,2]
[312543927,1705955439605,-208.611055,0.00015159,2]
[312543930,1705955439615,-196.27979344,0.000164,2]
[312543933,1705955439624,-272.55691777,0.000165,2]
[312543936,1705955439634,-874.37604694,0.00017235,2]
[312543939,1705955439643,-200.0,0.0001768,2]
[312543942,1705955439653,-2198.91341838,0.00017898,2]
[312543946,1705955439665,-8339.05499597,0.00017898,2]
[312543949,1705955439674,-670.58761481,0.00018561,2]
[312543952,1705955439683,-644.40876473,0.00018561,2]
[312543955,1705955439693,-1582.38308236,0.00019,2]
[312543958,1705955439702,-172.738338,0.00019178,2]
[312543960,1705955439711,-24900.0,0.00019213,2]
[312543962,1705955439720,-280.0,0.00019448,2]
[312543964,1705955439732,-193.29520792,0.00019663,2]
[312543966,1705955439741,-154.92253873,0.0002,2]
[312543968,1705955439750,-323.13003236,0.0002,2]
[312543970,1705955439761,-850.30063575,0.0002,2]
[312543972,1705955439770,-678.6288756,0.0002,2]
[312543974,1705955439779,-154.92253873,0.0002,2]
[312543976,1705955439789,-1197.97622761,0.0002,2]
[312543978,1705955439798,-154.92253873,0.0002,2]
[312543980,1705955439807,-200.0,0.0002,2]
[312543982,1705955439817,-154.92253873,0.0002,2]
[312543984,1705955439826,-154.92253873,0.0002,2]
[312543986,1705955439835,-667.24083957,0.0002,2]
[312543988,1705955439845,-300.0,0.00021393,2]
[312543990,1705955439854,-2084.29033128,0.00021393,2]
[312543992,1705955439863,-1826.00758456,0.00021393,2]
[312543994,1705955439872,-343.09681091,0.00021393,2]
[312543995,1705955439881,-284227.95491571,0.00021393,2]
[312543997,1705955439890,-166.666666,0.00021918,2]
[312543999,1705955439900,-158.61013242,0.00021982,2]
[312544001,1705955439909,-166.94378863,0.00021982,2]
[312544003,1705955439918,-154.98449536,0.00021986,2]
[312544005,1705955439928,-294.57737238,0.00021986,2]
[312544007,1705955439937,-434.23749797,0.00021986,2]
[312544009,1705955439947,-1741.02914519,0.00021986,2]
[312544011,1705955439956,-164.97224594,0.00021986,2]
[312544013,1705955439965,-1287.17016169,0.00021987,5]
[312544015,1705955439975,-7087.35255153,0.00021988,2]
[312544017,1705955439984,-2425.12630329,0.00021989,2]
[312544019,1705955439993,-433.36535978,0.00021989,2]
[312544021,1705955440003,-1696.62198985,0.00021989,2]
[312544023,1705955440015,-709.18573505,0.00021989,2]
[312544025,1705955440025,-264.05065044,0.00021989,2]
[312544027,1705955440035,-425.98515357,0.00022,2]
[312544028,1705955440045,-7616.88966956,0.00022,2]
[312544030,1705955440054,-293.4468762,0.00022,4]
[312544032,1705955440063,-196.27979344,0.000221,2]
[312544033,1705955440072,-166.666666,0.00022431,2]
[312544035,1705955440082,-208.611055,0.00022739,2]
[312544037,1705955440091,-166.666666,0.00022944,2]
[312544038,1705955440100,-1571.50470749,0.00023,2]
[312544040,1705955440109,-166.666666,0.00023456,2]
[312544042,1705955440118,-200.0,0.00023532,7]
[312544044,1705955440130,-348.0,0.00023532,7]
[312544045,1705955440140,-166.666666,0.00023969,2]
[312544047,1705955440150,-4014.03339386,0.00024,2]
[312544048,1705955440159,-166.666666,0.00024482,2]
[312544049,1705955440168,-160.763215,0.00024658,2]
[312544050,1705955440178,-179.685492,0.00024658,2]
[312544052,1705955440188,-380.0,0.00024658,2]
[312544054,1705955440198,-1582.21305813,0.000247,2]
[312544056,1705955440208,-497.79734774,0.0002496,5]
[312544058,1705955440217,-679.71377977,0.00025,2]
[312544059,1705955440226,-7381.29040931,0.00025,2]
[312544061,1705955440236,-154.9690062,0.00025,2]
[312544062,1705955440245,-4723.24260277,0.00025,2]
[312544063,1705955440255,-154.92253873,0.00025,2]
[312544064,1705955440266,-154.98450155,0.00025,2]
[312544065,1705955440275,-160.763215,0.0002544,2]
[312544066,1705955440284,-179.685492,0.0002544,2]
[312544067,1705955440293,-9807.92282386,0.00025755,2]
[312544068,1705955440303,-200.0,0.00025886,7]
[312544069,1705955440313,-200.0,0.00025886,7]
[312544070,1705955440322,-368.0,0.00025886,7]
[312544071,1705955440331,-148612.35004414,0.00026,2]
[312544072,1705955440340,-160.763215,0.00026223,2]
[312544073,1705955440350,-179.685492,0.00026223,2]
[312544074,1705955440359,-172.738338,0.0002639,2]
[312544075,1705955440369,-621.33494957,0.000264,2]
[312544076,1705955440378,-290.32272867,0.00027,2]
[312544077,1705955440387,-160.763215,0.00027006,2]
[312544078,1705955440396,-179.685492,0.00027006,2]
[312544079,1705955440406,-157.26757479,0.00027397,2]
[312544080,1705955440416,-500.0,0.00027397,2]
[312544081,1705955440425,-23098.37,0.00027397,3]
[312544082,1705955440434,-500.0,0.00027534,2]
[312544083,1705955440443,-500.0,0.00027671,2]
[312544084,1705955440452,-620.06674748,0.0002772,2]
[312544085,1705955440462,-160.763215,0.00027789,2]
[312544086,1705955440471,-179.685492,0.00027789,2]
[312544087,1705955440480,-196.27979344,0.00027799,2]
[312544088,1705955440490,-38560.35367316,0.000278,2]
[312544089,1705955440500,-163.995668,0.000278,2]
[312544090,1705955440619,-546.95952545,0.00027855,2]
[312544091,1705955440628,-178.83619526,0.00027855,2]
[312544092,1705955440637,-763.99864371,0.00027855,2]
[312544093,1705955440646,-261.58936724,0.00027855,2]
[312544094,1705955440655,-154.92253873,0.00027855,2]
[312544095,1705955440664,-268.33405762,0.00027898,2]
[312544096,1705955440673,-10020.47442414,0.00027898,2]
[312544097,1705955440683,-1990.08489948,0.00027898,2]
[312544098,1705955440692,-420.99236475,0.00027898,2]
[312544099,1705955440701,-154.9690062,0.00027898,2]
[312544100,1705955440710,-154.9690062,0.00027898,2]
[312544101,1705955440719,-4809.33485352,0.00027898,2]
[312544102,1705955440728,-10173.04030523,0.00027899,2]
[312544103,1705955440737,-500.0,0.00027899,4]
[312544104,1705955440746,-500.0,0.00027899,4]
[312544105,1705955440755,-558.81438836,0.00027899,4]
[312544106,1705955440765,-500.0,0.00027899,4]
[312544107,1705955440774,-500.0,0.00027899,4]
[312544108,1705955440783,-500.0,0.00027899,4]
[312544109,1705955440792,-500.0,0.00027899,4]
[312544110,1705955440801,-196.87568694,0.00027899,4]
[312544111,1705955440810,-500.0,0.00027899,4]
[312544112,1705955440819,-500.0,0.00027899,4]
[312544113,1705955440828,-500.0,0.00027899,4]
[312544114,1705955440837,-500.0,0.00027899,4]
[312544115,1705955440846,-500.0,0.00027899,4]
[312544116,1705955440855,-500.0,0.00027899,4]
[312544117,1705955440865,-500.0,0.00027899,4]
[312544118,1705955440874,-500.0,0.00027899,4]
[312544119,1705955440883,-184.37175772,0.00027899,4]
[312544120,1705955440892,-500.0,0.00027899,4]
[312544121,1705955440901,-500.0,0.00027899,4]
[312544122,1705955440910,-500.0,0.00027899,4]
[312544123,1705955440920,-500.0,0.00027899,4]
[312544124,1705955440929,-500.0,0.00027899,4]
[312544125,1705955440938,-500.0,0.00027899,4]
[312544126,1705955440948,-500.0,0.00027899,4]
[312544127,1705955440957,-500.0,0.00027899,4]
[312544128,1705955440966,-500.0,0.00027899,4]
[312544129,1705955440974,-500.0,0.00027899,4]
[312544130,1705955440983,-500.0,0.00027899,4]
[312544131,1705955440992,-500.0,0.00027899,4]
[312544132,1705955441002,-500.0,0.00027899,4]
[312544133,1705955441011,-500.0,0.00027899,4]
[312544134,1705955441020,-500.0,0.00027899,4]
[312544135,1705955441029,-500.0,0.00027899,4]
[312544136,1705955441038,-500.0,0.00027899,4]
[312544137,1705955441046,-500.0,0.00027899,4]
[312544138,1705955441055,-500.0,0.00027899,4]
[312544139,1705955441065,-513.77594008,0.00027899,4]
[312544140,1705955441074,-500.0,0.00027899,4]
[312544141,1705955441083,-500.0,0.00027899,4]
[312544142,1705955441092,-500.0,0.00027899,4]
[312544143,1705955441101,-500.0,0.00027899,4]
[312544144,1705955441111,-563.62781865,0.00027899,4]
[312544145,1705955441120,-500.0,0.00027899,4]
[312544146,1705955441129,-500.0,0.00027899,4]
[312544147,1705955441138,-500.0,0.00027899,4]
[312544148,1705955441147,-500.0,0.00027899,2]
[312544149,1705955441156,-500.0,0.00027899,2]
[312544150,1705955441165,-500.0,0.00027899,2]
[312544151,1705955441174,-500.0,0.00027899,2]
[312544152,1705955441183,-500.0,0.00027899,2]
[312544153,1705955441192,-500.0,0.00027899,2]
[312544154,1705955441201,-500.0,0.00027899,2]
[312544155,1705955441210,-500.0,0.00027899,2]
[312544156,1705955441219,-500.0,0.00027899,2]
[312544157,1705955441228,-500.0,0.00027899,2]
[312544158,1705955441237,-368.18109494,0.00027899,2]
[312544159,1705955441246,-500.0,0.00027899,2]
[312544160,1705955441255,-500.0,0.00027899,2]
[312544161,1705955441265,-500.0,0.00027899,2]
[312544162,1705955441274,-500.0,0.00027899,2]
[312544163,1705955441283,-500.0,0.00027899,2]
[312544164,1705955441293,-500.0,0.00027899,2]
[312544165,1705955441302,-481.33016738,0.00027899,2]
[312544166,1705955441311,-500.0,0.00027899,2]
[312544167,1705955441320,-500.0,0.00027899,2]
[312544168,1705955441329,-500.0,0.00027899,2]
[312544169,1705955441338,-500.0,0.00027899,2]
[312544170,1705955441347,-500.0,0.00027899,2]
[312544171,1705955441356,-243.54303511,0.00027899,2]
[312544172,1705955441365,-397.84502655,0.00027899,2]
[312544173,1705955441374,-500.0,0.00027899,2]
[312544174,1705955441384,-500.0,0.00027899,2]
[312544175,1705955441393,-500.0,0.00027899,2]
[312544176,1705955441403,-500.0,0.00027899,2]
[312544177,1705955441413,-500.0,0.00027899,2]
[312544178,1705955441421,-500.0,0.00027899,2]
[312544179,1705955441430,-500.0,0.00027899,2]
[312544180,1705955441440,-500.0,0.00027899,2]
[312544181,1705955441449,-500.0,0.00027899,2]
[312544182,1705955441458,-396.64239516,0.00027899,2]
[312544183,1705955441466,-500.0,0.00027899,2]
[312544184,1705955441475,-500.0,0.00027899,2]
[312544185,1705955441484,-500.0,0.00027899,2]
[312544186,1705955441494,-500.0,0.00027899,2]
[312544187,1705955441506,-500.0,0.00027899,2]
[312544188,1705955441518,-500.0,0.00027899,2]
[312544189,1705955441528,-500.0,0.00027899,2]
[312544190,1705955441537,-500.0,0.00027899,2]
[312544191,1705955441547,-500.0,0.00027899,2]
[312544192,1705955441556,-500.0,0.00027899,2]
[312544193,1705955441565,-500.0,0.00027899,2]
[312544194,1705955441574,-500.0,0.00027899,2]
[312544195,1705955441583,-500.0,0.00027899,2]
[312544196,1705955441593,-500.0,0.00027899,2]
[312544197,1705955441603,-500.0,0.00027899,2]
[312544198,1705955441613,-500.0,0.00027899,2]
[312544199,1705955441622,-500.0,0.00027899,2]
[312544200,1705955441631,-500.0,0.00027899,2]
[312544201,1705955441640,-500.0,0.00027899,2]
[312544202,1705955441650,-500.0,0.00027899,2]
[312544203,1705955441659,-500.0,0.00027899,2]
[312544204,1705955441668,-500.0,0.00027899,2]
[312544205,1705955441677,-499.99999999,0.00027899,4]
[312544206,1705955441693,-499.99999999,0.00027899,4]
[312544207,1705955441707,-197.22860766,0.00027899,4]
[312544208,1705955441720,-500.0,0.00027899,4]
[312544209,1705955441733,-500.0,0.00027899,4]
[312544210,1705955441745,-500.0,0.00027899,4]
[312544211,1705955441756,-533.44259912,0.00027899,4]
[312544212,1705955441769,-500.0,0.00027899,4]
[312544213,1705955441782,-500.0,0.00027899,4]
[312544214,1705955441793,-500.0,0.00027899,4]
[312544215,1705955441805,-500.0,0.00027899,4]
[312544216,1705955441818,-500.0,0.00027899,4]
[312544217,1705955441830,-1280.5309295,0.00027899,2]
[312544218,1705955441842,-160.23699858,0.00027899,2]
[312544219,1705955441853,-1280.5309295,0.00027899,2]
[312544220,1705955441863,-1280.5309295,0.00027899,2]
[312544221,1705955441876,-1020.27956928,0.00027899,2]
[312544222,1705955441888,-1280.5309295,0.00027899,2]
[312544223,1705955441899,-1280.5309295,0.00027899,2]
[312544224,1705955441910,-1020.27956928,0.00027899,2]
[312544225,1705955441922,-500.0,0.00027899,2]
[312544226,1705955441934,-1280.5309295,0.00027899,2]
[312544227,1705955441946,-1020.27956928,0.00027899,2]
[312544228,1705955441958,-500.0,0.00027899,2]
[312544229,1705955441969,-1020.27956928,0.00027899,2]
[312544230,1705955441979,-500.0,0.00027899,2]
[312544231,1705955441990,-1020.27956928,0.00027899,2]
[312544232,1705955442003,-1280.5309295,0.00027899,2]
[312544233,1705955442015,-500.0,0.00027899,2]
[312544234,1705955442027,-500.0,0.00027899,2]
[312544235,1705955442037,-1020.27956928,0.00027899,2]
[312544236,1705955442048,-1280.5309295,0.00027899,2]
[312544237,1705955442058,-1020.27956928,0.00027899,2]
[312544238,1705955442070,-1280.5309295,0.00027899,2]
[312544239,1705955442081,-223.48424579,0.00027899,2]
[312544240,1705955442092,-1020.27956928,0.00027899,2]
[312544241,1705955442104,-1280.5309295,0.00027899,2]
[312544242,1705955442116,-1020.27956928,0.00027899,2]
[312544243,1705955442128,-1020.27956928,0.00027899,2]
[312544244,1705955442140,-1020.27956928,0.00027899,2]
[312544245,1705955442152,-1020.27956928,0.00027899,2]
[312544246,1705955442162,-1280.5309295,0.00027899,2]
[312544247,1705955442172,-1020.27956928,0.00027899,2]
[312544248,1705955442182,-500.0,0.00027899,2]
[312544249,1705955442192,-500.0,0.00027899,2]
[312544250,1705955442203,-1280.5309295,0.00027899,2]
[312544251,1705955442215,-282.37131633,0.00027899,2]
[312544252,1705955442226,-1020.27956928,0.00027899,2]
[312544253,1705955442237,-1020.27956928,0.00027899,2]
[312544254,1705955442249,-1020.27956928,0.00027899,2]
[312544255,1705955442260,-1020.27956928,0.00027899,2]
[312544256,1705955442271,-1020.27956928,0.00027899,2]
[312544257,1705955442281,-500.0,0.00027899,2]
[312544258,1705955442291,-1280.5309295,0.00027899,2]
[312544259,1705955442301,-500.0,0.00027899,2]
[312544260,1705955442311,-1020.27956928,0.00027899,2]
[312544261,1705955442322,-500.0,0.00027899,2]
[312544262,1705955442332,-1020.27956928,0.00027899,2]
[312544263,1705955442342,-500.0,0.00027899,2]
[312544264,1705955442352,-1280.5309295,0.00027899,2]
[312544265,1705955442362,-500.0,0.00027899,2]
[312544266,1705955442372,-500.0,0.00027899,2]
[312544267,1705955442382,-1280.5309295,0.00027899,2]
[312544268,1705955442393,-1020.27956928,0.00027899,2]
[312544269,1705955442403,-1020.27956928,0.00027899,2]
[312544270,1705955442414,-500.0,0.00027899,2]
[312544271,1705955442424,-1020.27956927,0.00027899,2]
[312544272,1705955442434,-1020.27956919,0.00027899,2]
[312544273,1705955442445,-1020.27956919,0.00027899,2]
[312544274,1705955442456,-1020.27956918,0.00027899,2]
[312544275,1705955442466,-160.77169566,0.00027899,2]
[312544276,1705955442477,-375.13395655,0.00027899,2]
[312544277,1705955442488,-10153.21354634,0.000279,2]
[312544278,1705955442505,-10202.84952288,0.000279,2]
[312544280,1705955442522,-15000.0,0.000279,2]
[312544283,1705955442534,-6523.9990219,0.000279,2]
[312544443,1705955444954,-163.36062126,0.00014841,2]
[312544445,1705955444966,-2017.64948733,0.0001494,2]
[312544459,1705955445229,-6109.93326784,0.0001494,2]
[312544460,1705955445239,-65199.33962896,0.000279,2]
[312544494,1705955446132,-309.8229115,0.00027064,2]
[312544496,1705955446141,-23004.4492072,0.000279,2]
[312544503,1705955446201,-41000.0,0.000279,2]
[312544585,1705955446985,-351.77818339,0.000279,2]
[312544587,1705955446996,-17270.11145036,0.000279,2]
[312544589,1705955447008,-18745.87157715,0.000279,2]
[312544591,1705955447022,-4807.06000001,0.000279,2]
[312544594,1705955447065,-4998.4513888,0.000279,2]
[312544646,1705955820879,200.0,0.00022011,7]
[312544647,1705955821675,348.0,0.00022011,7]
[312544689,1705956471179,-1000.0,0.0003,30]
[312544744,1705956632362,-213.43652609,0.00012714,2]
[312544746,1705956632371,-154.8915759,0.00012714,2]
[312544748,1705956632380,-65.86139801,0.00012715,2]
[312544807,1705956638228,-105.39603399,0.00012715,2]
[312544808,1705956638238,-154.8915759,0.00012812,2]
[312544809,1705956638249,-301.93072688,0.00012813,2]
[312544810,1705956638259,-437.41725313,0.00012816,2]
[312544811,1705956638309,-7690.16550204,0.00012816,2]
[312544812,1705956638320,-69960.43377896,0.00012817,2]
[312544813,1705956638332,-11246.95087352,0.00012817,2]
[312544814,1705956638342,-15915.17297811,0.00012818,2]
[312544815,1705956638352,-470.67463112,0.00012831,2]
[312544816,1705956638361,-2103.40493137,0.00012831,2]
[312544817,1705956638371,-2073.9279871,0.00012832,2]
[312544818,1705956638380,-24900.0,0.00012834,2]
[312544819,1705956638390,-208.6110557,0.00013699,2]
[312544820,1705956638399,-154.92253873,0.00014036,2]
[312544821,1705956638409,-200.0,0.00014107,2]
[312544822,1705956638419,-1287.17016169,0.00014584,2]
[312544823,1705956638428,-196.27979344,0.00014935,2]
[312544825,1705956638437,-154.92253873,0.00015,2]
[312544826,1705956638446,-687.96014716,0.00015,2]
[312544827,1705956638455,-1266.7890629,0.00015,2]
[312544829,1705956638469,-7087.35255153,0.00015035,2]
[312544831,1705956638478,-433.36535978,0.00015035,2]
[312544832,1705956638487,-1696.62198985,0.00015035,2]
[312544834,1705956638497,-1741.02914519,0.00015035,2]
[312544836,1705956638506,-294.57737238,0.00015035,2]
[312544838,1705956638515,-166.94378863,0.00015035,2]
[312544840,1705956638523,-709.18573505,0.00015035,2]
[312544842,1705956638532,-264.05065044,0.00015035,2]
[312544844,1705956638542,-434.23749797,0.00015035,2]
[312544846,1705956638551,-2425.12630329,0.00015035,2]
[312544847,1705956638561,-154.98449536,0.00015035,2]
[312544849,1705956638570,-164.97224594,0.00015035,2]
[312544850,1705956638579,-7448.5280568,0.0001504,2]
[312544851,1705956638588,-280.0,0.00015518,2]
[312544853,1705956638598,-170.37730026,0.00016499,2]
[312544854,1705956638607,-155.17569594,0.00016499,2]
[312544855,1705956638616,-272.55691777,0.000165,2]
[312544856,1705956638625,-391.0,0.0001707,2]
[312544858,1705956638635,-874.37604694,0.00017235,2]
[312544860,1705956638644,-1990.08489948,0.00017889,2]
[312544861,1705956638653,-10020.47442414,0.00017889,2]
[312544862,1705956638663,-268.33405762,0.00017889,2]
[312544863,1705956638673,-14111.65379134,0.00017897,2]
[312544864,1705956638682,-10537.96841435,0.00017898,2]
[312544865,1705956638691,-1582.38308236,0.00019,2]
[312544866,1705956638811,-172.738356,0.00019178,2]
[312544867,1705956638820,-154.92253873,0.0002,2]
[312544868,1705956638829,-323.13003236,0.0002,2]
[312544869,1705956638839,-1197.97622761,0.0002,2]
[312544870,1705956638848,-154.92253873,0.0002,2]
[312544871,1705956638857,-850.30063575,0.0002,2]
[312544872,1705956638867,-678.6288756,0.0002,2]
[312544873,1705956638878,-154.92253873,0.0002,2]
[312544874,1705956638887,-154.9690062,0.00021371,2]
[312544875,1705956638900,-154.9690062,0.00021371,2]
[312544876,1705956638909,-420.99236475,0.00021371,2]
[312544877,1705956638918,-4809.33485352,0.00021371,2]
[312544878,1705956638927,-10173.04030523,0.00021372,2]
[312544879,1705956638937,-229.61018473,0.00021391,2]
[312544880,1705956638946,-271.26327757,0.00021391,2]
[312544881,1705956638956,-166.666666,0.00021918,2]
[312544882,1705956638967,-293.4468762,0.00022,4]
[312544883,1705956638977,-425.98515357,0.00022,2]
[312544884,1705956638986,-7616.88966956,0.00022,2]
[312544885,1705956638994,-166.666666,0.00022431,2]
[312544886,1705956639004,-166.666666,0.00022944,2]
[312544887,1705956639014,-1571.50470749,0.00023,2]
[312544888,1705956639023,-166.666666,0.00023456,2]
[312544889,1705956639032,-166.666666,0.00023969,2]
[312544890,1705956639042,-7704.47868303,0.00024,2]
[312544891,1705956639052,-166.666666,0.00024482,2]
[312544892,1705956639061,-233.27323,0.00024658,2]
[312544893,1705956639070,-280.0,0.00024658,2]
[312544894,1705956639079,-160.763215,0.00024658,2]
[312544895,1705956639089,-824.33300328,0.000247,2]
[312544896,1705956639099,-497.79734774,0.0002496,5]
[312544897,1705956639108,-16434.44305414,0.00024998,2]
[312544898,1705956639117,-7381.29040931,0.00025,2]
[312544899,1705956639126,-250.51017286,0.00025,2]
[312544900,1705956639136,-679.71377977,0.00025,2]
[312544901,1705956639146,-4723.24260277,0.00025,2]
[312544902,1705956639155,-154.92253873,0.00025,2]
[312544903,1705956639164,-154.98450155,0.00025,2]
[312544904,1705956639173,-233.27323,0.0002544,2]
[312544905,1705956639183,-9807.92282386,0.000258,2]
[312544906,1705956639194,-160.763215,0.00025875,2]
[312544907,1705956639203,-148612.35004414,0.00026,2]
[312544908,1705956639213,-233.27323,0.00026223,2]
[312544909,1705956639225,-290.16476431,0.00027,2]
[312544910,1705956639234,-233.27323,0.00027006,2]
[312544911,1705956639243,-160.763215,0.00027093,2]
[312544912,1705956639252,-157.26757479,0.00027397,2]
[312544913,1705956639261,-500.0,0.00027397,2]
[312544914,1705956639271,-18952.21,0.00027397,3]
[312544915,1705956639280,-21588.37,0.00027397,3]
[312544916,1705956639289,-500.0,0.00027534,2]
[312544917,1705956639298,-5000.0,0.00027595,5]
[312544918,1705956639308,-5000.0,0.00027595,5]
[312544919,1705956639317,-5000.0,0.00027595,5]
[312544920,1705956639326,-5000.0,0.00027595,5]
[312544921,1705956639335,-5000.0,0.00027595,5]
[312544922,1705956639344,-3580.00468199,0.00027595,5]
[312544923,1705956639358,-1419.99531801,0.00027595,5]
[312544924,1705956639368,-5000.0,0.00027595,5]
[312544925,1705956639378,-3782.85420487,0.00027595,5]
[312544944,1705956642227,-158.66595213,0.00012714,2]
[312544945,1705956642236,-7960.18375069,0.00012815,2]
[312544946,1705956642246,-1217.14579513,0.00027595,5]
[312544947,1705956642255,-5000.0,0.00027595,5]
[312544948,1705956642264,-5000.0,0.00027595,5]
[312544949,1705956642274,-5000.0,0.00027595,5]
[312544950,1705956642284,-7583.14909806,0.00027595,5]
[312545046,1705956646419,-213.43652609,0.00027594,2]
[312545047,1705956646429,-2459.73347391,0.00027595,5]
[312545116,1705957320535,214.0,0.00021371,7]
[312545126,1705957620102,391.0,0.00021345,7]
[312545217,1705957838391,-154.90705577,0.00014947,2]
[312545218,1705957838401,-163.3606212,0.00014948,2]
[312545220,1705957838411,-687.96014716,0.00015,2]
[312545222,1705957838422,-1266.7890629,0.00015,2]
[312545224,1705957838431,-154.90705577,0.00015035,2]
[312545226,1705957838441,-213.43652609,0.00015036,2]
[312545228,1705957838451,-170.92363548,0.00015037,2]
[312545230,1705957838459,-8127.58275517,0.00015038,2]
[312545232,1705957838469,-7960.18375069,0.00015041,2]
[312545234,1705957838478,-2073.9279871,0.00015048,2]
[312545236,1705957838487,-470.67463112,0.00015048,2]
[312545238,1705957838497,-24900.0,0.0001505,2]
[312545240,1705957838506,-10020.47442414,0.00016064,2]
[312545242,1705957838515,-1990.08489948,0.00016065,2]
[312545244,1705957838524,-155.17569594,0.00016065,2]
[312545246,1705957838534,-420.99236475,0.00016066,2]
[312545248,1705957838543,-154.9690062,0.00016066,2]
[312545250,1705957838552,-10173.04030523,0.00016066,2]
[312545252,1705957838561,-154.9690062,0.00016066,2]
[312545254,1705957838571,-193.29520792,0.00016066,2]
[312545256,1705957838579,-670.58761481,0.00016066,2]
[312545258,1705957838588,-644.40876473,0.00016066,2]
[312545260,1705957838598,-225.24174207,0.00016066,2]
[312545262,1705957838607,-14111.65379134,0.00016066,2]
[312545264,1705957838616,-268.33405762,0.00016066,2]
[312545266,1705957838625,-4809.33485352,0.00016067,2]
[312545268,1705957838634,-4580.55992462,0.0001631,2]
[312545270,1705957838644,-272.55691777,0.000165,2]
[312545272,1705957838654,-874.37604694,0.00017235,2]
[312545274,1705957838663,-200.0,0.0001764,2]
[312545276,1705957838673,-10537.96841435,0.00017898,2]
[312545278,1705957838682,-1582.38308236,0.00019,2]
[312545280,1705957838691,-172.738352,0.00019178,2]
[312545282,1705957838700,-280.0,0.00019404,2]
[312545284,1705957838709,-163.646846,0.00019971,2]
[312545286,1705957838718,-2134.35553655,0.0002,5]
[312545288,1705957838727,-154.8915759,0.0002,2]
[312545290,1705957838737,-1197.97622761,0.0002,2]
[312545292,1705957838746,-154.8915759,0.0002,2]
[312545294,1705957838755,-323.13003236,0.0002,2]
[312545296,1705957838765,-154.8915759,0.0002,2]
[312545298,1705957838774,-678.6288756,0.0002,2]
[312545300,1705957838783,-850.30063575,0.0002,2]
[312545302,1705957838792,-229.61018473,0.0002,2]
[312545304,1705957838801,-271.26327757,0.0002,2]
[312545306,1705957838810,-200.0,0.0002,2]
[312545308,1705957838819,-667.24083957,0.0002,2]